bitfinex/quotes_ETHUSD_20251110
["timestamp","ask_amount","ask_price","bid_price","bid_amount"]
[1762809435415,2.81904004,3547.4,3546.7,2.81951551]
[1762809435717,2.81897016,3547.4,3546.8,3.4115522]
[1762809435922,2.818909,3547.5,3546.8,3.4115522]
[1762809436133,0.6345,3547.8,3546.8,0.89901411]
[1762809436429,0.1828,3547.8,3546.2,0.4121]
[1762809436611,2.8193416,3547.0,3546.5,0.002]
[1762809437127,2.81907552,3547.3,3546.9,0.3069]
[1762809437329,2.81913501,3547.2,3546.9,0.3069]
[1762809437682,2.81925464,3547.1,3546.9,0.3069]
[1762809438048,2.81904332,3547.4,3546.9,0.3069]
[1762809438049,2.81915014,3547.2,3546.9,0.3069]
[1762809438418,0.4517,3547.4,3546.9,0.3069]
[1762809438615,0.6345,3547.8,3546.9,0.3069]
[1762809438834,2.81903488,3547.4,3546.9,0.3069]
[1762809439055,3.00148959,3547.8,3546.9,0.93217984]
[1762809439253,2.81909895,3547.3,3546.9,0.3069]
[1762809439654,2.81913958,3547.2,3546.9,0.3069]
[1762809440119,0.4517,3547.5,3546.9,0.3069]
[1762809440321,2.81914755,3547.2,3546.9,0.3069]
[1762809440521,0.4517,3547.5,3546.5,0.002]
[1762809440723,2.81924901,3547.1,3546.5,3.14508062]
[1762809441123,0.4517,3547.4,3546.5,0.32539983]
[1762809441321,0.4517,3547.4,3546.5,0.002]
[1762809441541,2.81941832,3546.9,3546.5,0.002]
[1762809441930,0.4517,3547.2,3546.5,0.002]
[1762809442131,2.81939711,3546.9,3546.5,0.002]
[1762809442330,3.27072662,3547.4,3546.5,0.002]
[1762809442540,2.81930708,3547.0,3546.5,0.002]
[1762809442739,2.8193423,3547.0,3546.5,0.002]
[1762809442945,2.81948494,3546.8,3546.5,0.002]
[1762809443140,0.4517,3546.9,3546.5,0.002]
[1762809443344,0.4517,3546.8,3546.5,0.002]
[1762809443546,2.81952998,3546.7,3546.5,0.002]
[1762809444043,3.27116074,3546.8,3546.5,0.002]
[1762809444424,2.81946074,3546.8,3546.5,0.002]
[1762809444856,0.4711,3546.6,3546.5,0.002]
[1762809445046,3.29070187,3546.6,3546.5,0.002]
[1762809445353,3.74250187,3546.6,3546.5,0.002]
[1762809446329,4.10953711,3546.6,3546.5,0.002]
[1762809446561,3.74250187,3546.6,3546.5,0.002]
[1762809447344,4.34259407,3546.6,3546.5,0.002]
[1762809448290,3.89079407,3546.6,3546.5,0.002]
[1762809448437,4.34259407,3546.6,3546.5,0.002]
[1762809449866,4.343523,3546.6,3546.5,0.002]
[1762809454584,6.35451142,3546.6,3546.5,0.002]
[1762809454808,5.603235,3546.6,3546.5,0.002]
[1762809457202,5.97027024,3546.6,3546.5,0.002]
[1762809457498,4.07963191,3546.2,3546.1,1e-08]
[1762809457703,5.89427175,3546.2,3546.1,1e-08]
[1762809457999,6.34607175,3546.2,3546.1,1e-08]
[1762809458168,5.59515304,3546.2,3546.1,1e-08]
[1762809459815,6.34607175,3546.2,3546.1,1e-08]
[1762809460494,5.59515304,3546.2,3546.1,1e-08]
[1762809461479,6.0375186,3546.2,3546.1,1e-08]
[1762809461778,3.42094104,3546.2,3546.1,1e-08]
[1762809461976,0.75091871,3546.8,3546.1,0.41210001]
[1762809462181,0.60010839,3546.7,3546.3,0.3069]
[1762809462485,0.60010839,3547.0,3546.3,0.3069]
[1762809462699,0.001,3547.1,3546.4,0.3069]
[1762809462886,2.81941103,3546.9,3546.4,0.3069]
[1762809463277,0.001,3547.1,3546.8,0.3069]
[1762809463600,0.001,3547.1,3547.0,0.3069]
[1762809464118,0.001,3547.1,3547.0,0.6138]
[1762809464777,0.001,3547.1,3547.0,0.95994941]
[1762809464982,0.001,3547.1,3547.0,3.4330839]
[1762809465512,0.001,3547.1,3547.0,0.6138]
[1762809466679,0.001,3547.1,3547.0,3.4330839]
[1762809467075,0.001,3547.1,3547.0,3.46127673]
[1762809468217,0.001,3547.5,3547.4,2.818966]
[1762809468415,0.001,3547.5,3547.4,3.68966836]
[1762809468637,0.001,3547.5,3547.4,3.99656836]
[1762809472134,0.001,3547.5,3547.4,18.49656836]
[1762809472331,0.001,3547.5,3547.4,3.99656836]
[1762809475133,0.001,3547.9,3547.8,2.81864817]
[1762809475335,0.001,3547.9,3547.8,3.68928681]
[1762809475534,0.001,3547.9,3547.8,3.99618681]
[1762809477053,0.001,3547.9,3547.8,1.17753864]
[1762809477255,0.001,3547.9,3547.7,2.81865512]
[1762809477438,0.001,3547.9,3547.4,0.56380236]
[1762809477641,0.001,3547.9,3547.8,0.3069]
[1762809478549,0.001,3547.9,3547.8,3.43244817]
[1762809479858,0.001,3547.9,3547.8,7.29244817]
[1762809481254,0.001,3547.9,3547.8,3.83795217]
[1762809481457,0.001,3548.2,3548.1,3.22391385]
[1762809481626,0.001,3548.2,3548.1,4.78519988]
[1762809481827,0.001,3548.2,3548.1,19.28519988]
[1762809482022,0.001,3548.6,3548.5,2.81809215]
[1762809482239,0.001,3548.6,3548.5,9.10773808]
[1762809482458,0.001,3548.6,3548.5,9.38645716]
[1762809482660,0.001,3549.7,3549.6,2.81721884]
[1762809482833,0.001,3549.7,3549.6,3.12411884]
[1762809483033,0.001,3549.7,3549.6,3.43101884]
[1762809484377,0.001,3549.7,3549.6,0.3069]
[1762809484669,0.001,3549.7,3549.6,3.12411884]
[1762809484865,0.001,3549.7,3549.6,3.85495307]
[1762809486467,0.001,3549.7,3549.6,4.16185307]
[1762809488259,0.001,3549.7,3549.6,3.85495307]
[1762809488766,0.001,3549.7,3549.6,22.21495307]
[1762809488970,0.001,3549.7,3549.6,22.52185307]
[1762809489791,0.01,3549.9,3549.8,4.07677211]
[1762809489986,0.01,3549.9,3549.8,7.76665863]
[1762809490673,0.01,3549.9,3549.8,7.05425463]
[1762809490875,0.01,3549.9,3549.8,2.81706011]
[1762809491078,0.6603,3549.9,3549.0,4.1669]
[1762809491281,0.4523,3549.7,3549.1,0.1072]
[1762809491458,0.4523,3549.7,3549.5,2.81725064]
[1762809491660,0.4523,3549.7,3549.1,1.259712]
[1762809491862,0.208,3549.9,3549.2,0.5119712]
[1762809491863,0.01,3549.9,3549.2,0.5119712]
[1762809492070,0.011,3549.9,3549.8,3.12396011]
[1762809492769,0.011,3549.9,3549.8,3.43086011]
[1762809492956,0.011,3549.9,3549.8,2.81706011]
[1762809493156,0.011,3549.9,3549.7,1.259712]
[1762809493364,0.011,3549.9,3549.7,2.81707341]
[1762809493763,0.011,3549.9,3549.8,2.81706011]
[1762809494485,0.4633,3549.9,3549.8,2.81706011]
[1762809494890,1.1291,3549.9,3549.0,1.259712]
[1762809495113,0.4523,3549.6,3549.1,0.9634989]
[1762809495272,0.4523,3549.6,3549.3,2.81740589]
[1762809495456,0.4523,3549.6,3549.5,2.81729821]
[1762809495657,0.209,3549.9,3549.7,2.81707254]
[1762809495900,0.011,3549.9,3549.7,2.81706905]
[1762809496061,0.4523,3549.8,3549.2,4.0771747]
[1762809496262,0.4523,3549.6,3549.5,2.81729821]
[1762809496475,0.9201,3549.6,3549.5,2.81729821]
[1762809496959,0.9201,3549.6,3549.3,2.81745696]
[1762809497181,0.9201,3549.6,3549.2,1.259712]
[1762809497396,0.4523,3549.3,3549.2,1.86823309]
[1762809497583,0.4678,3549.5,3549.4,2.81737758]
[1762809497763,0.209,3549.9,3549.2,1.86823309]
[1762809497961,0.209,3549.9,3549.7,2.81708891]
[1762809498381,0.4523,3549.8,3549.7,2.81708891]
[1762809498715,0.4523,3549.8,3549.2,1.86823309]
[1762809498916,0.4523,3549.8,3549.3,0.4685777]
[1762809499119,0.4523,3549.8,3549.3,2.81745696]
[1762809499306,0.4678,3549.7,3549.5,2.81724654]
[1762809499489,0.4523,3549.4,3549.2,1.86823309]
[1762809499809,0.4523,3549.3,3549.2,4.07724834]
[1762809500133,0.4678,3549.6,3549.5,2.81729821]
[1762809500480,0.9201,3549.6,3549.5,2.81729821]
[1762809500811,0.9201,3549.6,3549.3,2.81743062]
[1762809501122,0.011,3549.9,3549.8,2.81706011]
[1762809502380,0.011,3549.9,3549.5,2.81727091]
[1762809502704,0.011,3549.9,3549.7,2.81709287]
[1762809503211,0.011,3549.9,3549.8,2.81706011]
[1762809503513,0.011,3549.9,3549.8,3.68739274]
[1762809504084,0.011,3549.9,3549.8,7.54739274]
[1762809504417,0.011,3549.9,3549.8,7.85429274]
[1762809505518,0.011,3549.9,3549.8,7.54739274]
[1762809505922,0.011,3549.9,3549.8,7.85429274]
[1762809506223,0.011,3549.9,3549.8,9.51950874]
[1762809506690,0.011,3549.9,3549.8,9.21260874]
[1762809506891,0.011,3549.9,3549.8,8.80710474]
[1762809507900,0.011,3549.9,3549.8,8.50020474]
[1762809508494,0.011,3549.9,3549.8,8.80710474]
[1762809509833,0.5106,3549.9,3549.8,8.50020474]
[1762809510005,0.5106,3549.9,3549.8,6.98396011]
[1762809510006,0.011,3549.9,3549.8,6.98396011]
[1762809510833,0.011,3549.9,3549.8,8.24367211]
[1762809511215,0.011,3549.9,3549.8,8.95607611]
[1762809512814,0.011,3549.9,3549.8,8.64917611]
[1762809513015,0.011,3549.9,3549.8,10.52905339]
[1762809513647,0.5106,3549.9,3549.8,9.81664939]
[1762809514154,1.1626,3549.9,3549.8,6.67706011]
[1762809515231,1.1626,3549.9,3549.8,3.86]
[1762809515455,1.1626,3549.9,3549.8,6.67706011]
[1762809515845,1.1626,3549.9,3549.6,0.002]
[1762809516160,0.4924,3549.7,3549.6,0.002]
[1762809516519,0.4924,3549.7,3549.6,2.81921884]
[1762809516520,0.9521,3549.7,3549.6,2.81921884]
[1762809517656,0.9521,3549.7,3549.6,0.002]
[1762809519261,0.011,3549.9,3549.8,2.81706011]
[1762809519636,0.011,3549.9,3549.8,3.68758088]
[1762809521842,0.011,3549.9,3549.8,3.71575148]
[1762809522040,0.011,3549.9,3549.8,4.94729288]
[1762809522967,0.011,3549.9,3549.8,5.25419288]
[1762809523132,0.011,3549.9,3549.8,4.94729288]
[1762809523862,0.011,3549.9,3549.8,8.80729288]
[1762809526847,0.011,3549.9,3549.8,8.50039288]
[1762809527048,0.011,3549.9,3549.8,8.80729288]
[1762809531042,0.011,3549.9,3549.8,14.03297384]
[1762809532964,0.011,3549.9,3549.8,13.72607384]
[1762809533160,0.011,3549.9,3549.8,8.50039288]
[1762809533665,1.1626,3549.9,3549.8,4.64039288]
[1762809533839,1.1626,3549.9,3549.8,4.07677211]
[1762809534038,1.1626,3549.9,3549.8,1.259712]
[1762809534573,1.1626,3549.9,3549.8,2.81706011]
[1762809535267,1.1626,3549.9,3549.7,2.81712279]
[1762809535468,0.4863,3549.7,3549.6,2.81921037]
[1762809535766,0.4863,3549.7,3549.6,0.002]
[1762809535973,0.9713,3549.7,3549.6,0.002]
[1762809536474,0.9713,3549.7,3549.6,2.81921884]
[1762809537469,0.9713,3549.7,3549.6,0.002]
[1762809540638,3.78843947,3549.7,3549.6,0.002]
[1762809541279,0.9713,3549.7,3549.6,0.002]
[1762809542175,0.4863,3549.7,3549.6,0.002]
[1762809542377,0.9713,3549.7,3549.6,0.002]
[1762809543678,3.78843947,3549.7,3549.6,0.002]
[1762809544084,2.81737758,3549.4,3549.3,0.002]
[1762809544284,5.04258958,3549.4,3549.3,0.002]
[1762809545744,5.04258958,3549.4,3548.9,0.002]
[1762809545745,1.259712,3549.1,3548.9,0.002]
[1762809545950,4.55800712,3549.0,3548.9,0.002]
[1762809546172,5.04300712,3549.0,3548.9,0.002]
[1762809546583,4.07748652,3548.9,3548.5,0.002]
[1762809546747,5.24288652,3548.9,3548.5,0.002]
[1762809546954,2.81801273,3548.6,3548.5,0.002]
[1762809547289,3.30241273,3548.6,3548.5,0.002]
[1762809547585,5.04712473,3548.6,3548.5,0.002]
[1762809549184,0.9694,3548.6,3548.5,0.002]
[1762809549687,0.4844,3548.6,3548.5,0.002]
[1762809549860,0.9694,3548.6,3548.5,0.002]
[1762809550060,0.4844,3548.6,3548.5,0.002]
[1762809550382,3.01203853,3548.9,3548.5,0.002]
[1762809550589,3.01197553,3548.9,3548.5,0.002]
[1762809550809,3.49697553,3548.9,3548.5,0.002]
[1762809551008,2.81786222,3548.8,3548.5,0.002]
[1762809551182,0.4863,3548.6,3548.5,0.002]
[1762809551794,0.9713,3548.6,3548.5,0.002]
[1762809552409,0.4863,3548.6,3548.5,0.002]
[1762809553486,0.1942,3548.9,3548.5,0.002]
[1762809553810,0.6792,3548.9,3548.5,0.28402488]
[1762809553980,3.49699919,3548.9,3548.5,0.002]
[1762809554179,0.485,3548.8,3548.5,0.002]
[1762809554405,0.4863,3548.6,3548.5,0.002]
[1762809555079,0.485,3548.8,3548.5,0.002]
[1762809556691,0.4863,3548.6,3548.5,0.002]
[1762809557099,0.1942,3548.9,3548.5,0.002]
[1762809557285,0.6792,3548.9,3548.5,0.002]
[1762809557493,3.49699554,3548.9,3548.5,0.002]
[1762809557805,0.485,3548.8,3548.5,0.002]
[1762809558724,0.4863,3548.6,3548.5,0.002]
[1762809559776,0.1942,3548.9,3548.5,0.3089]
[1762809559981,2.8177512,3549.0,3548.5,0.3089]
[1762809560290,0.485,3549.1,3548.5,0.90343121]
[1762809560613,2.81761065,3549.2,3548.6,2.81800584]
[1762809560810,0.485,3549.4,3548.5,0.59653121]
[1762809560997,2.81775621,3549.0,3548.5,0.002]
[1762809561402,2.81762439,3549.1,3548.5,2.82006623]
[1762809561594,0.485,3549.0,3548.5,2.82006623]
[1762809562113,0.485,3549.5,3548.5,0.56583077]
[1762809562413,3.30236099,3549.5,3548.8,2.81780879]
[1762809562712,0.001,3549.2,3548.9,2.81777388]
[1762809563086,0.001,3549.2,3548.8,2.81782225]
[1762809563292,0.001,3549.2,3548.8,3.41229575]
[1762809563811,0.001,3549.2,3549.1,0.3069]
[1762809564001,0.001,3549.2,3548.8,2.81778242]
[1762809564205,0.001,3549.2,3548.9,2.81777305]
[1762809564396,0.001,3549.2,3549.0,2.81769246]
[1762809564595,0.001,3549.2,3548.9,2.81773915]
[1762809564792,0.001,3549.2,3548.5,0.002]
[1762809564998,0.001,3549.2,3548.6,0.3069]
[1762809565311,0.001,3549.2,3548.9,2.81774116]
[1762809565514,0.001,3549.2,3548.9,2.81773383]
[1762809566413,0.4509,3549.0,3548.5,0.41889]
[1762809566614,0.4509,3548.8,3548.5,4.27889]
[1762809566782,0.4509,3548.8,3548.6,2.81801175]
[1762809566989,0.4509,3548.8,3548.5,4.27889]
[1762809566990,0.4519,3549.1,3548.7,2.81793332]
[1762809567190,0.4519,3549.1,3548.5,7.09697786]
[1762809567386,0.4519,3549.1,3548.5,3.862]
[1762809567722,0.4509,3548.6,3548.5,3.862]
[1762809568288,0.9028,3548.6,3548.5,3.862]
[1762809569408,3.72081273,3548.6,3548.5,3.862]
[1762809569915,3.26891273,3548.6,3548.5,3.862]
[1762809570114,0.4509,3548.6,3548.5,3.862]
[1762809570518,3.72081273,3548.6,3548.5,3.862]
[1762809570917,3.72081273,3548.6,3548.5,0.002]
[1762809572709,0.9028,3548.6,3548.5,0.002]
[1762809573311,0.4509,3548.6,3548.5,0.002]
[1762809573697,3.26967906,3548.9,3548.5,0.002]
[1762809574510,0.4519,3548.9,3548.5,0.002]
[1762809574710,0.6373,3548.9,3548.5,0.002]
[1762809574927,2.81785953,3548.8,3548.5,0.002]
[1762809575122,0.6373,3548.9,3548.5,0.002]
[1762809575304,0.4519,3548.8,3548.5,0.002]
[1762809575505,0.1854,3548.9,3548.5,0.002]
[1762809575704,0.6373,3548.9,3548.5,0.002]
[1762809576016,3.45509694,3548.9,3548.5,0.002]
[1762809577428,0.001,3549.2,3548.8,0.3069]
[1762809577597,2.81762318,3549.1,3548.8,0.3069]
[1762809577797,0.001,3549.2,3548.8,3.12469274]
[1762809578006,0.001,3549.2,3549.0,0.3069]
[1762809579024,0.001,3549.2,3548.7,2.81791495]
[1762809579228,0.001,3549.2,3549.1,0.3069]
[1762809579590,0.4519,3549.2,3548.7,2.81791895]
[1762809579795,0.001,3548.9,3548.7,2.81791895]
[1762809581531,0.001,3548.9,3548.8,0.3069]
[1762809582598,0.6373,3548.9,3548.5,0.002]
[1762809582799,0.4509,3548.6,3548.5,0.002]
[1762809583200,0.9028,3548.6,3548.5,0.002]
[1762809583417,0.4509,3548.6,3548.5,0.002]
[1762809584120,0.9028,3548.6,3548.5,0.002]
[1762809585903,3.72081273,3548.6,3548.5,0.002]
[1762809587234,4.98052473,3548.6,3548.5,0.002]
[1762809589455,3.72081273,3548.6,3548.5,0.002]
[1762809590555,0.001,3548.9,3548.5,0.3089]
[1762809590756,0.001,3548.9,3548.8,3.12475392]
[1762809590924,0.001,3548.9,3548.8,3.74991365]
[1762809591554,0.001,3548.9,3548.8,4.08499218]
[1762809592157,0.001,3548.9,3548.8,4.05681365]
[1762809593324,0.001,3548.9,3548.8,5.31652565]
[1762809594157,0.001,3548.9,3548.8,5.72202965]
[1762809594665,0.001,3548.9,3548.8,20.22202965]
[1762809596524,0.001,3549.3,3549.1,3.22311973]
[1762809596731,0.001,3549.3,3549.1,5.87135343]
[1762809596924,0.001,3549.3,3549.1,6.17825343]
[1762809597145,0.001,3549.3,3549.1,5.87135343]
[1762809598366,0.001,3549.3,3549.1,7.13106543]
[1762809598666,0.001,3549.3,3549.1,4.38422773]
[1762809599284,0.001,3549.3,3549.1,4.69112773]
[1762809600528,0.001,3549.3,3549.1,5.09663173]
[1762809600843,0.001,3549.3,3549.1,4.38422773]
[1762809601733,0.4968,3549.2,3549.1,1.259712]
[1762809601976,0.4968,3549.2,3548.8,3.86]
[1762809602145,0.4968,3549.2,3549.1,2.81761573]
[1762809602562,0.4968,3549.2,3548.9,1.70822797]
[1762809602765,0.4968,3549.2,3549.1,2.81761573]
[1762809603166,0.4968,3549.2,3548.9,1.70822797]
[1762809603366,0.4968,3549.2,3549.1,2.81761573]
[1762809604481,0.4968,3549.2,3548.9,1.70822797]
[1762809604777,0.4968,3549.2,3549.1,2.81761573]
[1762809606279,0.001,3549.2,3549.1,5.45366553]
[1762809606480,0.001,3549.2,3549.1,5.83099338]
[1762809606640,0.001,3549.2,3549.1,6.32779338]
[1762809608646,0.001,3549.7,3549.6,3.22272284]
[1762809608878,0.001,3549.7,3549.6,8.64933484]
[1762809609081,0.001,3549.7,3549.6,10.55964462]
[1762809609460,0.001,3549.7,3549.6,10.86654462]
[1762809609863,0.001,3549.7,3549.6,25.36654462]
[1762809610078,0.001,3549.7,3549.6,24.65414062]
[1762809611184,0.001,3549.7,3549.6,24.96104062]
[1762809611373,0.001,3549.7,3549.6,25.47941064]
[1762809613058,0.001,3549.7,3549.6,10.97941064]
[1762809613473,0.001,3549.7,3549.6,25.47941064]
[1762809614284,1e-08,3549.9,3549.8,3.52946411]
[1762809614489,1e-08,3549.9,3549.8,10.78847181]
[1762809614813,1e-08,3549.9,3549.8,14.95537181]
[1762809616075,1e-08,3549.9,3549.8,15.52670508]
[1762809616285,1e-08,3549.9,3549.8,11.66670508]
[1762809616505,1e-08,3549.9,3549.8,12.35508381]
[1762809616704,1e-08,3549.9,3549.8,12.46792786]
[1762809618007,1e-08,3549.9,3549.8,13.01993687]
[1762809618619,1e-08,3549.9,3549.8,12.16102786]
[1762809618823,1e-08,3549.9,3549.8,12.46792786]
[1762809619454,1e-08,3549.9,3549.8,7.34195786]
[1762809619676,1e-08,3549.9,3549.8,4.90202016]
[1762809620008,1e-08,3549.9,3549.8,9.72109016]
[1762809620208,1e-08,3549.9,3549.8,4.49651616]
[1762809620424,1e-08,3549.9,3549.8,4.90202016]
[1762809620756,1e-08,3549.9,3549.8,5.20892016]
[1762809620932,1e-08,3549.9,3549.8,6.46275106]
[1762809623737,1e-08,3549.9,3549.8,7.02923918]
[1762809627145,1e-08,3549.9,3549.8,11.54140918]
[1762809628483,0.001,3550.5,3550.4,4.48180004]
[1762809628637,0.001,3550.5,3550.4,9.30087004]
[1762809628831,0.001,3550.5,3550.4,11.11172625]
[1762809629257,0.001,3550.5,3550.4,11.22456138]
[1762809630508,0.4752,3551.6,3550.8,4.07597875]
[1762809630802,0.001,3551.6,3550.8,4.78838275]
[1762809631004,0.4752,3551.6,3550.8,4.78838275]
[1762809631301,0.4752,3551.6,3550.8,5.26358275]
[1762809631507,0.4752,3551.6,3550.8,6.38391675]
[1762809631802,0.001,3551.6,3550.8,6.38391675]
[1762809631991,0.4742,3551.4,3550.8,6.38391675]
[1762809632410,0.4742,3551.4,3550.8,10.24391675]
[1762809632925,0.011,3550.9,3550.8,10.24391675]
[1762809633323,0.011,3550.9,3550.8,9.93701675]
[1762809633824,0.6489,3550.9,3550.8,6.07701675]
[1762809633985,0.4674,3550.9,3550.8,6.07701675]
[1762809634417,0.011,3550.9,3550.8,6.07701675]
[1762809635026,0.011,3550.9,3550.8,9.69017083]
[1762809636987,0.4674,3550.9,3550.8,9.69017083]
[1762809637188,1.1231,3550.9,3550.8,9.69017083]
[1762809637796,0.6489,3550.9,3550.8,9.69017083]
[1762809638027,1.1231,3550.9,3550.8,4.07597875]
[1762809638546,1.1231,3550.9,3550.3,3.61315408]
[1762809638710,0.4742,3550.8,3550.6,2.81642539]
[1762809638893,0.4742,3550.8,3550.7,2.81634607]
[1762809639430,0.9306,3550.8,3550.7,2.81634607]
[1762809640503,0.9306,3550.8,3550.4,1.259712]
[1762809640711,0.1925,3550.9,3550.7,2.81634607]
[1762809641227,0.9306,3550.8,3550.7,2.81634607]
[1762809644545,0.9306,3550.8,3550.6,2.81641642]
[1762809644716,0.4564,3550.6,3550.0,1.259712]
[1762809644962,0.4564,3550.6,3550.5,2.81650471]
[1762809645362,0.9306,3550.6,3550.5,2.81650471]
[1762809647042,0.1925,3550.9,3550.8,2.81626675]
[1762809647243,0.6667,3550.9,3550.8,2.81626675]
[1762809647437,1.1231,3550.9,3550.8,2.81626675]
[1762809648748,1.1231,3550.9,3550.6,2.81635994]
[1762809648952,0.4564,3550.7,3550.2,1.259712]
[1762809649269,0.4742,3550.8,3550.3,2.81666338]
[1762809649270,0.4564,3550.5,3550.3,2.81666338]
[1762809649477,0.4742,3550.8,3550.5,2.81649306]
[1762809649664,0.1925,3550.9,3550.7,2.81634607]
[1762809649973,0.1925,3550.9,3550.6,2.81639937]
[1762809650175,0.4742,3550.8,3550.7,2.81634606]
[1762809650675,0.9306,3550.8,3550.7,2.81634606]
[1762809650882,0.9306,3550.8,3550.6,0.002]
[1762809651063,0.9306,3550.7,3550.6,0.002]
[1762809651258,3.74694607,3550.7,3550.6,0.002]
[1762809657949,2.81658404,3550.4,3550.3,0.002]
[1762809658157,3.29708404,3550.4,3550.3,0.002]
[1762809658383,3.78288404,3550.4,3550.3,0.002]
[1762809659684,4.14550261,3550.4,3550.3,0.002]
[1762809660600,3.78288404,3550.4,3550.3,0.002]
[1762809661472,0.9663,3550.4,3550.3,0.002]
[1762809661881,0.4805,3550.4,3550.3,2.81866338]
[1762809662456,0.1925,3550.9,3550.3,0.87244131]
[1762809662659,0.1925,3550.9,3550.7,2.81628882]
[1762809662898,0.1925,3550.9,3550.3,0.002]
[1762809663063,0.011,3550.9,3550.8,2.81626675]
[1762809663674,0.4915,3550.9,3550.7,2.81630045]
[1762809664088,0.4915,3550.9,3550.8,2.81626675]
[1762809664795,0.011,3550.9,3550.8,2.81626675]
[1762809664997,0.011,3550.9,3550.8,3.37953291]
[1762809665596,0.011,3550.9,3550.8,0.87016616]
[1762809665774,0.011,3550.9,3550.8,3.12316675]
[1762809666971,0.011,3550.9,3550.8,6.73684566]
[1762809667297,0.011,3550.9,3550.8,7.04374566]
[1762809667500,0.011,3550.9,3550.8,3.92057891]
[1762809667671,0.011,3550.9,3550.8,6.73684566]
[1762809667873,0.011,3550.9,3550.8,7.69216373]
[1762809668275,0.4915,3550.9,3550.8,7.38526373]
[1762809668878,0.4915,3550.9,3550.8,3.77158482]
[1762809669507,0.011,3550.9,3550.8,3.77158482]
[1762809671709,0.011,3550.9,3550.8,4.38538482]
[1762809672806,1.1661,3550.9,3550.7,2.81633957]
[1762809673010,0.4805,3550.8,3550.6,2.81841025]
[1762809673170,0.4805,3550.7,3550.6,2.81841025]
[1762809674667,0.9663,3550.7,3550.6,0.002]
[1762809675497,3.78264607,3550.7,3550.6,0.002]
[1762809679100,0.9663,3550.7,3550.6,0.002]
[1762809679997,3.78264607,3550.7,3550.6,0.002]
[1762809682247,0.9663,3550.7,3550.6,0.002]
[1762809682462,3.78264607,3550.7,3550.6,0.002]
[1762809683161,0.4805,3550.7,3550.6,0.002]
[1762809683674,0.1998,3550.9,3550.6,0.002]
[1762809683968,0.4805,3550.7,3550.6,0.002]
[1762809684844,0.9663,3550.7,3550.6,0.002]
[1762809685428,0.4815,3550.7,3550.6,2.81842539]
[1762809685739,0.001,3550.7,3550.6,3.12532539]
[1762809685944,0.001,3550.7,3550.6,3.71971538]
[1762809686465,0.001,3550.7,3550.6,4.02661538]
[1762809686970,0.001,3550.7,3550.6,18.52661538]
[1762809688162,0.001,3550.7,3550.6,24.46926784]
[1762809689173,0.011,3550.9,3550.8,3.22177075]
[1762809689376,0.001,3551.1,3551.0,3.22161213]
[1762809689542,0.001,3551.1,3551.0,4.81638521]
[1762809689747,0.001,3551.1,3551.0,5.12328521]
[1762809689971,0.001,3551.1,3551.0,5.23609711]
[1762809690169,0.001,3551.1,3551.0,5.20793603]
[1762809690368,0.001,3551.3,3551.2,3.22145353]
[1762809690598,0.001,3551.3,3551.2,23.56550199]
[1762809690801,0.001,3551.3,3551.2,23.87240199]
[1762809691094,0.001,3551.6,3551.5,4.48092767]
[1762809691282,0.001,3551.6,3551.5,4.81598478]
[1762809691457,0.001,3551.6,3551.5,6.597935]
[1762809691658,0.001,3551.6,3551.5,21.097935]
[1762809692074,0.001,3551.6,3551.5,20.791035]
[1762809693901,0.001,3551.6,3551.5,20.078631]
[1762809694402,0.4881,3551.6,3551.5,5.578631]
[1762809694604,0.4881,3551.6,3551.5,4.07542367]
[1762809694803,0.4881,3551.6,3551.5,1.259712]
[1762809695100,0.9665,3551.6,3551.3,2.81581909]
[1762809695515,0.4871,3551.4,3550.8,0.0946]
[1762809695866,0.4871,3551.4,3551.3,2.81587024]
[1762809697177,0.4871,3551.4,3550.8,2.91083531]
[1762809697178,0.9655,3551.4,3550.8,0.0946]
[1762809697367,0.4784,3551.4,3551.2,2.81594875]
[1762809697581,0.4784,3551.4,3551.1,2.81601944]
[1762809697775,0.4784,3551.4,3551.1,2.81600749]
[1762809698101,0.4784,3551.4,3550.6,0.002]
[1762809698102,0.4871,3551.2,3550.6,2.81836989]
[1762809698300,0.4784,3551.4,3550.8,2.81618884]
[1762809698507,0.4784,3551.3,3550.7,4.07605652]
[1762809698713,0.4784,3551.3,3550.9,2.81616726]
[1762809699022,0.4784,3551.3,3550.7,4.07605652]
[1762809699023,0.4871,3550.8,3550.7,4.07599829]
[1762809699708,0.9655,3550.8,3550.6,0.002]
[1762809699906,0.4871,3550.7,3550.6,0.002]
[1762809700073,0.4871,3550.7,3550.6,2.81839922]
[1762809700468,0.1869,3550.9,3550.6,2.81839922]
[1762809700469,0.1869,3550.9,3550.8,2.81626675]
[1762809700993,1.1524,3550.9,3550.8,2.81626675]
[1762809701800,1.1524,3550.9,3550.7,2.81634607]
[1762809702003,1.1524,3550.9,3550.8,2.81626675]
[1762809702591,1.1524,3550.9,3550.6,0.002]
[1762809702905,0.4871,3550.7,3550.6,0.002]
[1762809703203,0.4871,3550.7,3550.6,2.81842539]
[1762809703404,0.4871,3550.7,3550.6,0.002]
[1762809703594,0.9655,3550.7,3550.6,0.002]
[1762809705502,0.9655,3550.7,3550.6,2.81842539]
[1762809705833,0.9655,3550.7,3550.6,0.002]
[1762809706634,0.001,3551.4,3551.3,2.81587024]
[1762809706929,0.001,3551.4,3551.3,4.66406926]
[1762809708112,0.4881,3551.4,3551.3,2.81587024]
[1762809708502,0.001,3551.4,3551.3,3.12277024]
[1762809709052,0.001,3551.4,3551.3,0.3069]